Cogmind - Beta 13 @@@ ROGUE MODE // 2024.04.23 @ 15:36:56 Player: JackieG Result: Self-destructed Performance ------------- Evolutions (1) 500 Regions Visited (2) 400 Robots Destroyed (22) 110 Value Destroyed (578) 578 Prototype IDs (3) 60 Alien Tech Used (0) 0 Bonus (0) 0 TOTAL SCORE: 1648 Bonus ------- None Cogmind --------- Core Integrity 343/400 Matter 102/300 Energy 265/265 System Corruption 8% Temperature Danger (462) Movement Walking (260) Ox2 Location -9/Materials Parts ------- > --- POWER (1) -------- Reinforced Ion Engine > --- PROPULSION (2) --- Aluminum Leg Aluminum Leg > --- UTILITY (4) ------ Medium Storage Unit Improved Terrain Scanner Light Armor Plating Reactive Plating > --- WEAPON (2) ------- Advanced Beam Cannon Flak Cannon > --- INVENTORY (10) --- Ion Engine Light Treads Aluminum Leg Improved Flight Unit Improved Flight Unit Medium Armor Plating Improved Medium Laser Heavy Assault Rifle Flak Cannon Grenade Launcher Peak State ------------ > --- POWER ------------ Ion Engine > --- PROPULSION ------- Aluminum Leg Improved Flight Unit > --- UTILITY ---------- Medium Storage Unit Improved Terrain Scanner Terrain Scan Processor Reactive Plating > --- WEAPON ----------- Flak Cannon Flak Cannon > --- INVENTORY -------- Ion Engine Aluminum Leg Aluminum Leg Aluminum Leg Medium Armor Plating Small Laser Flak Cannon Grenade Launcher Mining Laser [Rating: 21] Favorites ----------- Power Ion Engine Engine Ion Engine Propulsion Aluminum Leg Treads Light Treads Leg Aluminum Leg Flight Unit Improved Flight Unit Utility Improved Terrain Scanner Device Improved Terrain Scanner Storage Small Storage Unit Processor Terrain Scan Processor Protection Reactive Plating Weapon Flak Cannon Energy Gun Small Laser Energy Cannon Advanced Beam Cannon Ballistic Gun Heavy Assault Rifle Ballistic Cannon Flak Cannon Launcher Grenade Launcher Special Weapon Mining Laser Build | -11 -10 -9 ------- Run | Yrd Mat Mat Slots Evolved 2 | . . 2 Power . | . . . Propulsion . | . . . Utility 2 | . . 2 Weapon . | . . . Parts Attached 32 | 7 8 17 Power 3 | 1 1 1 Engine 3 | 1 1 1 Core . | . . . Reactor . | . . . Propulsion 7 | 2 2 3 Treads 2 | 2 . . Leg 4 | . 2 2 Wheel . | . . . Hover . | . . . Flight 1 | . . 1 Utility 8 | 2 1 5 Device 3 | 1 1 1 Storage 2 | 1 . 1 Processor 1 | . . 1 Hackware . | . . . Protection 2 | . . 2 Artifact . | . . . Weapon 14 | 2 4 8 Energy Gun 6 | 2 3 1 Energy Cannon 2 | . . 2 Ballistic Gun 1 | . . 1 Ballistic Cannon 3 | . . 3 Launcher 1 | . 1 . Special Weapon 1 | . . 1 Impact Weapon . | . . . Slashing Weapon . | . . . Piercing Weapon . | . . . Special Melee Weapon . | . . . Unidentified Prototypes 3 | . . 3 Parts Lost 4 | . 3 1 Power . | . . . Propulsion 1 | . 1 . Utility 2 | . 1 1 Weapon 1 | . 1 . Highest Loss Streak 2 | . 2 1 To Critical Strikes . | . . . Average Slot Usage (%) 96 | . 91 98 Engine 11 | . 14 11 Treads 6 | . 21 . Leg 16 | . 5 21 Device 11 | . 8 12 Storage 11 | . 14 11 Processor 4 | . . 5 Protection 9 | . . 13 Energy Gun 9 | . 27 1 Energy Cannon 1 | . . 1 Ballistic Gun 1 | . . 2 Ballistic Cannon 11 | . . 16 Naked Turns . | . . . Heaviest Build 44 | 14 14 44 Greatest Support 40 | 40 40 20 Greatest Overweight (x) 2 | . . 2 Average Overweight (x) . | . . 1 Largest Inventory Capacity 10 | 8 8 10 Average Capacity 8 | 7 8 8 Most Carried 10 | 5 8 10 Average Carried 7 | 2 6 8 Final Capacity 10 | 8 8 10 Final Carried 10 | 4 7 10 Class Distribution -------------------- 75% | Mutant 24% | Scavenger-Mutant Dominant Class ---------------- Mutant | -10/Materials Mutant | -9/Materials Resources | -11 -10 -9 ----------- Run | Yrd Mat Mat Matter Collected 679 | 233 93 353 Remotely . | . . . Salvage Created 553 | 14 192 347 Parts 43 | 4 11 28 Haulers Intercepted 2 | . . 2 Recyclers Shooed 1 | . . 1 Parts Field Recycled . | . . . Retrieved Matter . | . . . Parts Self-Destructed . | . . . Prevented . | . . . Kills | -11 -10 -9 ------- Run | Yrd Mat Mat Combat Hostiles Destroyed 14 | . 4 10 Guns 4 | . 2 2 Cannons 8 | . . 8 AOE 1 | . 1 . Classes Destroyed 6 | 1 2 3 Builder 2 | . 1 1 Tunneler 3 | 1 1 1 Hauler 2 | . . 2 Watcher 1 | . . 1 Grunt 13 | . 4 9 Brawler 1 | . . 1 Best Kill Streak 4 | 1 2 4 Combat Bots Only 3 | . 2 3 Max Kills in Single Turn 2 | 1 1 2 Gunslinging . | . . . Exploded 1 | . 1 . Melee . | . . . Uniques/NPCs Destroyed . | . . . Combat | -11 -10 -9 -------- Run | Yrd Mat Mat Hostile Shots Fired 97 | . 46 51 Missed 17 | . 4 13 Damage Taken 1095 | . 618 477 Core 173 | . 116 57 Absorbed by Shields . | . . . Core Remaining (%) 76 | 100 53 . Volleys Fired 63 | 2 23 38 Largest 2 | 2 2 2 Hottest 123 | 80 80 123 Shots Fired 121 | 4 44 73 Gun 65 | 4 42 19 Cannon 53 | . . 53 Launcher 2 | . 2 . Special 1 | . . 1 Kinetic 69 | . . 69 Thermal 45 | 2 39 4 Explosive 2 | . 2 . Electromagnetic 5 | 2 3 . Robot Hit Streak 15 | 3 15 9 Robot Miss Streak 7 | 1 2 7 Penetration Max . | . . . Secondary Targets . | . . . Shots Hit Robots 89 | 3 33 53 Core Hits 59 | 1 12 46 Critical Kills . | . . . Critical Parts Destroyed . | . . . Critical Strikes . | . . . Melee Attacks . | . . . Impact . | . . . Slashing . | . . . Piercing . | . . . Sneak Attacks . | . . . Combat Hostiles . | . . . Follow-up Attacks . | . . . Damage Inflicted 1463 | 33 456 974 Guns 564 | 33 354 177 Cannons 797 | . . 797 Explosions 102 | . 102 . Melee . | . . . Ramming . | . . . Kinetic 953 | . . 953 Thermal 382 | 20 341 21 Explosive 102 | . 102 . Electromagnetic 26 | 13 13 . Impact . | . . . Slashing . | . . . Piercing . | . . . Highest Corruption 8 | . . 8 Average Corruption 7 | . . 7 Corruption Purged . | . . . Corruption Blocked . | . . . Effects 9 | . . 9 Message Errors 2 | . . 2 Heat Flow Errors 1 | . . 1 Energy Discharges 3 | . . 3 Data Loss (minor) 1 | . . 1 Weapon Failures 2 | . . 2 Overload Shots . | . . . Overflow Damage . | . . . Projectiles . | . . . Explosions . | . . . Melee . | . . . Knockbacks 20 | . . 20 Impact . | . . . Kinetic 18 | . . 18 Secondary 2 | . . 2 Self-Inflicted Damage 58 | . 58 . Shots 2 | . 2 . Rammed . | . . . Targets Rammed . | . . . Kicked . | . . . Crushed . | . . . Highest Temperature 470 | 36 355 470 Average Temperature 104 | 20 142 86 Received Heat Transfer 579 | . 345 234 Effects 5 | . 4 1 Energy Bleed 1 | . 1 . Interference 2 | . 2 . Damage (minor) 2 | . 1 1 Siege Activations . | . . . Robots Corrupted . | . . . Combat Hostiles . | . . . Parts Fried . | . . . Impact Corruptions . | . . . Robots Melted 1 | . 1 . Combat Hostiles 1 | . 1 . Parts Melted 2 | . 2 . Heat Transferred 887 | 50 800 37 Parts Sabotaged . | . . . Parts Stolen . | . . . Parts Stripped . | . . . Power Chain Reactions . | . . . Alert | -11 -10 -9 ------- Run | Yrd Mat Mat Peak Influence 204 | 5 147 204 Initial 61 | . 3 61 Average 90 | . 73 117 Maximum Alert Level 1 | . . 1 Low Security (%) 91 | 100 100 86 Level 1 8 | . . 13 Level 2 . | . . . Level 3 . | . . . Level 4 . | . . . Level 5 . | . . . High Security . | . . . Max Security . | . . . Squads Dispatched 2 | . 1 1 Investigation 1 | . . 1 Extermination . | . . . Reinforcement 1 | . 1 . Assault . | . . . Garrison . | . . . Intercept . | . . . Searches Triggered . | . . . Construction Impeded . | . . . Haulers Reinforced . | . . . Active Scanning Responses . | . . . Cargo Convoy Interrupts . | . . . Stealth | -11 -10 -9 --------- Run | Yrd Mat Mat Distress Signals 1 | . . 1 Communications Jammed . | . . . Distress Signals . | . . . Times Spotted 25 | . 8 17 Peak Tracking Total 3 | . 3 3 Tactical Retreats 1 | . . 1 Traps | -11 -10 -9 ------- Run | Yrd Mat Mat Traps Triggered . | . . . Indirectly . | . . . Trap Hack Attempts . | . . . Triggered . | . . . Disarmed . | . . . Reprogrammed . | . . . Reused . | . . . Traps Extracted . | . . . Installed . | . . . Triggered . | . . . Machines | -11 -10 -9 ---------- Run | Yrd Mat Mat Machines Disabled 1 | . 1 . Max in Single Turn 1 | . 1 . Machines Repaired . | . . . Machines Dismantled . | . . . Machines Sabotaged . | . . . Overloaded Fab Kills . | . . . Hacking | -11 -10 -9 --------- Run | Yrd Mat Mat Machines Accessed 3 | . 1 2 Terminals 3 | . 1 2 Fabricators . | . . . Repair Stations . | . . . Recycling Units . | . . . Scanalyzers . | . . . Garrison Access . | . . . Total Hacks 5 | . 2 3 Successful 3 | . 1 2 Failed 2 | . 1 1 Catastrophic 1 | . . 1 Database Lockouts . | . . . Manual 6 | . 2 4 Terminals 5 | . 2 3 Fabricators . | . . . Repair Stations . | . . . Recycling Units . | . . . Scanalyzers . | . . . Garrison Access . | . . . Terminal Hacks 1 | . . 1 Unreport Threat 1 | . . 1 Fabricator Hacks . | . . . Repair Station Hacks . | . . . Recycling Unit Hacks . | . . . Scanalyzer . | . . . Garrison Access Hacks . | . . . Unauthorized Hacks 2 | . 1 1 Terminals 2 | . 1 1 Assimilate 1 | . 1 . Botnet 1 | . . 1 Fabricators . | . . . Repair Stations . | . . . Recycling Units . | . . . Scanalyzers . | . . . Garrison Access . | . . . Data Cores Recovered . | . . . Used . | . . . Hacking Detections 4 | . 1 3 Full Trace Events 1 | . . 1 Feedback Events . | . . . Feedback Blocked . | . . . Robot Schematics Acquired . | . . . Robots Built . | . . . Authchips . | . . . Time . | . . . Total Robot Build Rating . | . . . Part Schematics Acquired . | . . . Parts Built . | . . . Authchips . | . . . Time . | . . . Total Part Build Rating . | . . . Parts Repaired . | . . . Time . | . . . Parts Recycled . | . . . Recycled Matter . | . . . Retrieved Matter . | . . . Retrieved Components . | . . . Parts Scanalyzed . | . . . Part Schematics Acquired . | . . . Parts Damaged . | . . . Bothacking | -11 -10 -9 ------------ Run | Yrd Mat Mat Used RIF Installer . | . . . Robots Hacked . | . . . Non-combat . | . . . Combat . | . . . Robot Hacks Applied . | . . . Relay Couplers Released . | . . . Fabnet Peak Effective % . | . . . Robots Rewired . | . . . Allies Hacked . | . . . Hacks Repelled . | . . . Allies | -11 -10 -9 -------- Run | Yrd Mat Mat Total Allies . | . . . Largest Group . | . . . Highest-Rated Group . | . . . Highest-Rated Ally . | . . . Total Orders . | . . . Ally Attacks . | . . . Total Damage . | . . . Kills . | . . . Allies Corrupted . | . . . Allies Melted . | . . . Intel | -11 -10 -9 ------- Run | Yrd Mat Mat Robot Analysis Total . | . . . Derelict Logs Recovered . | . . . Drone Launches . | . . . Drone Recoveries . | . . . Exploration | -11 -10 -9 ------------- Run | Yrd Mat Mat Turns Passed 974 | 121 262 591 Spaces Moved 389 | 66 116 207 Core 4 | 4 . . Treads 140 | 62 78 . Legs 245 | . 38 207 Wheels . | . . . Hover . | . . . Flight . | . . . Fastest Speed 50 | 50 120 120 Average Speed 173 | 153 146 194 Slowest Speed 260 | 160 160 260 Overloaded Moves . | . . . Propulsion Burnouts . | . . . Robots Hopped . | . . . Cave-ins Triggered . | . . . Exploration Rate (%) 19 | 4 32 22 Regions Visited 2 Branch Regions . Pre-discovered Areas . | . . . Known Exits Taken . | . . . Unknown Exits Taken 2 | 1 1 . Scrap Searched . | . . . Spaces Dug 1 | . . 1 Terrain Destroyed 11 | . 10 1 Melee . | . . . Projectile 1 | . . 1 AOE 10 | . 10 . Terrain Rammed . | . . . Walls Destroyed . | . . . Machines Disabled . | . . . Actions | -11 -10 -9 --------- Run | Yrd Mat Mat Total 558 | 79 160 319 Wait 38 | . 9 29 Move 387 | 65 115 207 Hop . | . . . Pick Up 24 | 5 5 14 Fast Attach 12 | 6 1 5 Attach 5 | 1 2 2 Detach . | . . . Swap 15 | . 5 10 Drop 14 | . . 14 Fire 63 | 2 23 38 Melee . | . . . Ram . | . . . Kick . | . . . Crush . | . . . Escape Stasis . | . . . Rewire . | . . . Trap . | . . . Miscellaneous . | . . . Route ------- -11/Scrapyard -10/Materials -9/Materials History --------- Turn | Location | Event 3 | -11/Scrapyard | Discovered new exit (range 16) 122 | -11/Scrapyard | Entered Materials 331 | -10/Materials | Build established: Mutant 370 | -10/Materials | Discovered new exit (range 11) 384 | -10/Materials | Entered another Materials area 384 | -9/Materials | Evolved 2 slots: Utility x2 975 | -9/Materials | Self-destructed Last Messages --------------- Dropped Faulty Adv. Beam Cannon. Acquired 29 matter. Dropped Aluminum Leg. Acquired Lgt. Treads. Dropped Mining Laser. System corrupted: Energy discharge (-71). Acquired Adv. Beam Cannon. Acquired Prototype Energy Gun. Identified Imp. Medium Laser. System corrupted: Energy discharge (-74). Connecting with Terminal... >>Alert(Purge) Purged threat record, alert level lowered. ALERT: Suspicious activity at Terminal M011. Dispatching Investigation squad. G-34 Mercenary knocked back. System corrupted: Heat flow error (+206). G-34 Mercenary destroyed. G-34 Mercenary knocked back. Overheating: Med. Storage Unit damaged (-73). Map ----- +----------------------------------------------------+ | ?????????????????????????????????????????? | | ?????????????????????????????????????????? | | ?????????????????????????????????????????? | | ?????????????????????????????????????????? | | ?????????????????????????????????????????? | | ?????????????????????????????????????????? | | ?????????????????????????????????????????? | | ?????????????????????????????????????????? | | ?????????????????????????????????????????? | | ?????????????????????????????? ????????? | | ?????????????"???????????????? #???????? | | ??????????????????????????#??? #???????? | | ???????????????????#?????????? /???????? | | ???????????????????##????????# #???????? | | ??????#??????????????????????# #???????# | | ??????????????????#??????????# #??? ???? | | ?????????????????????????????# #?????"?? | | ?????????????????????????????# # ??????" | | ?????????#???????#???????????# #?""????" | | ????????#????????????????????+ +? ? | | ?????????#?????????#??? ??R??# #???? ? | | ???#????????????#?#???? ?"?? # #?????? ? | | ??????######################## #? ? | | ????????# gg | ###???##? | | ????????# [!= #???##?#? | | ???????## % @ =!= ##?#???#? | | ???#????# #### ##########+#####??##### | | ???????????????# #???#??#]!% ]]#?### | | ??????????????## #??#???# [[! #???# " | | ????????#??????# #?#??#?# [! ##??# T | | ??#?????#??????# ###????#| ! #?#?# " | | ???????????????# ###??### =#??## | | ???????#??????## ##??#??# [!#?### [ | | ??????????????# ############+######### | | ??????????? ??# T" =%! | | ??????????????# " ######## | | ??????#??? ???# #???#??# | | ??????????????# ###+########+#####???# | | ??????????????####### ? ? ????? ? ??+ | | ??????????????????#?#???? #? ?? ##### | | ????#???????##????##????? #?? ?????#?## | | ???????#??????????#????? ?## ?? ???#?## | | ???????????????????????????# """? ???????? | | ???????????????????????????# """ ? ????##? | | ????????????????????? ?????# """ ? ?##?? | | ???????????????????????????#? ?? ??? #???# | | ?????????????????????"???????????#?#??#??? | | ???????????????????????????##????#????#??# | | ????????????????????????????#??#????#??##? | | ?????????????????????????????????#???????# | +----------------------------------------------------+ Best States ------------- Heat Dissipation 38 Energy Generation 12 Energy Capacity 265 Matter Stores 300 Matter Capacity 300 Sight Range 16 Terrain Scan Range 16 Terrain Scan Density 85 Armor Coverage 300 Resistance: KI 20 Evasion (%) 55 Recoil Reduction 2 Item Schematics ----------------- None Robot Schematics ------------------ None Fabricated ------------ Nothing Alien Tech Used ----------------- None Achievements -------------- None Challenges ------------ None Game ------ Seed ModifiedSensorStripper Manual? 0 Play Time 00:13:41 Cumulative 28.2 hours Start 2024.04.16 @ 14:37:57 End 2024.04.23 @ 15:36:56 Sessions 4 Manual Loads 0 Difficulty Rogue Special Mode None Game No. 30 Rogue 27 Adventurer 3 Explorer 0 Win Type - Total 0 Types 0/0/0/0/0/0/0/0/0 Lore% 29 Gallery% 29 Achievement% 29 Wizard Run 0 Options --------- Layout 1 ASCII 0 Keyboard 0 Movement Mouse Keybinds 0 Fullscreen 1 Font 24/Smallcaps Map View 50x35 Zoom Use 0% Tactical HUD 0 Map Filters NONE Filters NONE Steam 1 RUN: f5461683-ce4b-4c51-8953-8c94b55d3256